fUST/lending_fUST_20240802
["ID","MTS","AMOUNT","RATE_DAILY","PERIOD"]
[333826106,1722533451267,-500.0,0.00015068,2]
[333826107,1722533451277,-2557.1,0.00015068,2]
[333826108,1722533451287,-500.0,0.00015068,2]
[333826109,1722533451297,-500.0,0.00015068,2]
[333826110,1722533451306,-500.0,0.00015068,2]
[333826111,1722533451316,-500.0,0.00015068,2]
[333826112,1722533451325,-500.0,0.00015068,2]
[333826113,1722533451336,-500.0,0.00015068,2]
[333826114,1722533451345,-500.0,0.00015068,2]
[333826115,1722533451354,-500.0,0.00015068,2]
[333826116,1722533451364,-500.0,0.00015068,2]
[333826117,1722533451374,-500.0,0.00015068,2]
[333826118,1722533451384,-500.0,0.00015068,2]
[333826119,1722533451393,-500.0,0.00015068,2]
[333826120,1722533451403,-500.0,0.00015068,2]
[333826121,1722533451413,-151.0,0.00015068,2]
[333826122,1722533451423,-625.88,0.00015068,2]
[333826123,1722533451433,-500.0,0.00015068,2]
[333826124,1722533451444,-528.88,0.00015068,2]
[333826125,1722533451454,-500.0,0.00015068,2]
[333826126,1722533451464,-514.58445616,0.00015068,2]
[333826127,1722533451473,-500.0,0.00015068,2]
[333826128,1722533451483,-500.0,0.00015068,2]
[333826129,1722533451494,-500.0,0.00015068,2]
[333826130,1722533451504,-500.0,0.00015068,2]
[333826131,1722533451514,-500.0,0.00015068,2]
[333826132,1722533451523,-295.177766,0.00015068,2]
[333826133,1722533451534,-151.0,0.00015068,2]
[333826134,1722533451545,-505.01678531,0.00015068,2]
[333826135,1722533451555,-312.0,0.00015068,2]
[333826136,1722533451567,-296.26201036,0.00015068,2]
[333826137,1722533451576,-500.0,0.00015068,2]
[333826138,1722533451585,-500.0,0.00015068,2]
[333826139,1722533451595,-741.72,0.00015068,2]
[333826140,1722533451605,-791.470537,0.00015068,2]
[333826141,1722533451615,-835.55,0.00015068,2]
[333826142,1722533451626,-791.470537,0.00015068,2]
[333826143,1722533451636,-347.18982331,0.00015068,2]
[333826144,1722533451646,-500.0,0.00015068,2]
[333826145,1722533451656,-500.0,0.00015068,2]
[333826146,1722533451666,-151.0,0.00015068,2]
[333826147,1722533451675,-2362.81,0.00015068,2]
[333826148,1722533451687,-980.08,0.00015068,2]
[333826149,1722533451699,-500.0,0.00015068,2]
[333826150,1722533451711,-500.0,0.00015068,2]
[333826151,1722533451722,-500.0,0.00015068,2]
[333826152,1722533451733,-151.0,0.00015068,2]
[333826153,1722533451744,-2472.62,0.00015068,2]
[333826154,1722533451755,-920.762457,0.00015068,2]
[333826155,1722533451765,-151.0,0.00015068,2]
[333826156,1722533451776,-841.64,0.00015068,2]
[333826157,1722533451785,-3390.28,0.00015068,2]
[333826158,1722533451794,-920.762457,0.00015068,2]
[333826159,1722533451803,-788.87,0.00015068,2]
[333826160,1722533451813,-500.0,0.00015068,2]
[333826161,1722533451822,-500.0,0.00015068,2]
[333826162,1722533451831,-500.0,0.00015068,2]
[333826163,1722533451840,-500.0,0.00015068,2]
[333826164,1722533451849,-500.0,0.00015068,2]
[333826165,1722533451858,-2123.16,0.00015068,2]
[333826166,1722533451869,-500.0,0.00015068,2]
[333826167,1722533451878,-195.42551071,0.00015068,2]
[333826168,1722533451887,-500.0,0.00015068,2]
[333826169,1722533451898,-500.0,0.00015068,2]
[333826170,1722533451907,-516.36542632,0.00015068,2]
[333826171,1722533451918,-500.0,0.00015068,2]
[333826172,1722533451927,-1344.79,0.00015068,2]
[333826173,1722533451938,-500.0,0.00015068,2]
[333826174,1722533451947,-728.914674,0.00015068,2]
[333826175,1722533451956,-779.72,0.00015068,2]
[333826176,1722533451966,-169.105404,0.00015068,2]
[333826177,1722533451976,-728.914674,0.00015068,2]
[333826178,1722533451986,-500.0,0.00015068,2]
[333826179,1722533451996,-500.0,0.00015068,2]
[333826180,1722533452006,-638.92,0.00015068,2]
[333826181,1722533452016,-532.55,0.00015068,2]
[333826182,1722533452027,-567.83,0.00015068,2]
[333826183,1722533452038,-500.0,0.00015068,2]
[333826184,1722533452049,-500.0,0.00015068,2]
[333826185,1722533452059,-620.24,0.00015068,2]
[333826186,1722533452069,-500.0,0.00015068,2]
[333826187,1722533452078,-500.0,0.00015068,2]
[333826188,1722533452087,-668.5,0.00015068,2]
[333826189,1722533452097,-500.0,0.00015068,2]
[333826190,1722533452107,-500.0,0.00015068,2]
[333826191,1722533452117,-500.0,0.00015068,2]
[333826192,1722533452126,-510.00024068,0.00015068,2]
[333826193,1722533452136,-737.04,0.00015068,2]
[333826194,1722533452146,-794.340026,0.00015068,2]
[333826195,1722533452156,-794.340026,0.00015068,2]
[333826196,1722533452166,-500.0,0.00015068,2]
[333826197,1722533452175,-514.69,0.00015068,2]
[333826198,1722533452184,-500.0,0.00015068,2]
[333826199,1722533452194,-884.141464,0.00015068,2]
[333826200,1722533452203,-884.141464,0.00015068,2]
[333826201,1722533452213,-500.0,0.00015068,2]
[333826202,1722533452222,-506.63770059,0.00015068,2]
[333826203,1722533452232,-1272.88,0.00015068,2]
[333826204,1722533452241,-500.0,0.00015068,2]
[333826205,1722533452251,-500.0,0.00015068,2]
[333826206,1722533452261,-1232.59,0.00015068,2]
[333826207,1722533452270,-500.0,0.00015068,2]
[333826208,1722533452280,-151.0,0.00015068,2]
[333826209,1722533452289,-944.98775209,0.000151,2]
[333826210,1722533452299,-150.112233,0.000152,2]
[333826211,1722533452310,-371.21891152,0.00015342,2]
[333826212,1722533452320,-500.0,0.00015342,2]
[333826213,1722533452330,-500.0,0.00015342,2]
[333826214,1722533452341,-500.0,0.00015342,2]
[333826215,1722533452351,-200.158612,0.00015342,2]
[333826216,1722533452361,-581.22471447,0.00015342,2]
[333826217,1722533452370,-500.0,0.00015342,2]
[333826218,1722533452379,-500.0,0.00015342,2]
[333826219,1722533452388,-151.0,0.00015342,2]
[333826220,1722533452397,-500.0,0.00015342,2]
[333826221,1722533452408,-500.0,0.00015342,2]
[333826222,1722533452417,-500.0,0.00015342,2]
[333826223,1722533452427,-500.0,0.00015342,2]
[333826224,1722533452499,-500.0,0.00015342,2]
[333826225,1722533452510,-459.71529664,0.00015342,2]
[333826226,1722533452520,-500.0,0.00015342,2]
[333826227,1722533452530,-500.0,0.00015342,2]
[333826228,1722533452542,-500.0,0.00015342,2]
[333826229,1722533452553,-2557.1,0.00015342,2]
[333826230,1722533452563,-500.0,0.00015342,2]
[333826231,1722533452572,-500.0,0.00015342,2]
[333826232,1722533452583,-500.0,0.00015342,2]
[333826233,1722533452592,-151.483895,0.00015342,2]
[333826234,1722533452601,-151.0,0.00015342,2]
[333826235,1722533452611,-500.0,0.00015342,2]
[333826236,1722533452620,-151.0,0.00015342,2]
[333826237,1722533452630,-500.0,0.00015342,2]
[333826238,1722533452640,-500.0,0.00015342,2]
[333826239,1722533452650,-500.0,0.00015342,2]
[333826240,1722533452662,-367.494248,0.00015342,2]
[333826241,1722533452671,-170.97848,0.00015342,2]
[333826242,1722533452681,-500.0,0.00015342,2]
[333826243,1722533452692,-367.494248,0.00015342,2]
[333826244,1722533452706,-500.0,0.00015342,2]
[333826245,1722533452715,-151.0,0.00015342,2]
[333826246,1722533452724,-170.97848,0.00015342,2]
[333826247,1722533452734,-500.0,0.00015342,2]
[333826248,1722533452745,-500.0,0.00015342,2]
[333826249,1722533452755,-151.0,0.00015342,2]
[333826250,1722533452764,-500.0,0.00015342,2]
[333826251,1722533452773,-500.0,0.00015342,2]
[333826252,1722533452785,-151.0,0.00015342,2]
[333826253,1722533452796,-625.88,0.00015342,2]
[333826254,1722533452805,-367.27318489,0.00015342,2]
[333826255,1722533452815,-528.88,0.00015342,2]
[333826256,1722533452824,-500.0,0.00015342,2]
[333826257,1722533452833,-500.0,0.00015342,2]
[333826258,1722533452843,-500.0,0.00015342,2]
[333826259,1722533452853,-500.0,0.00015342,2]
[333826260,1722533452863,-500.0,0.00015342,2]
[333826261,1722533452872,-500.0,0.00015342,2]
[333826262,1722533452881,-583.72397441,0.00015342,2]
[333826263,1722533452892,-741.72,0.00015342,2]
[333826264,1722533452902,-835.55,0.00015342,2]
[333826265,1722533452915,-500.0,0.00015342,2]
[333826266,1722533452926,-500.0,0.00015342,2]
[333826267,1722533452935,-2362.81,0.00015342,2]
[333826268,1722533452945,-980.08,0.00015342,2]
[333826269,1722533452954,-500.0,0.00015342,2]
[333826270,1722533452963,-500.0,0.00015342,2]
[333826271,1722533452972,-500.0,0.00015342,2]
[333826272,1722533452982,-2472.62,0.00015342,2]
[333826273,1722533452992,-841.64,0.00015342,2]
[333826274,1722533453003,-3390.28,0.00015342,2]
[333826275,1722533453012,-788.87,0.00015342,2]
[333826276,1722533453022,-500.0,0.00015342,2]
[333826277,1722533453032,-500.0,0.00015342,2]
[333826278,1722533453041,-500.0,0.00015342,2]
[333826279,1722533453051,-500.0,0.00015342,2]
[333826280,1722533453061,-500.0,0.00015342,2]
[333826281,1722533453070,-2123.16,0.00015342,2]
[333826282,1722533453080,-500.0,0.00015342,2]
[333826283,1722533453089,-500.0,0.00015342,2]
[333826284,1722533453098,-500.0,0.00015342,2]
[333826285,1722533453108,-1344.79,0.00015342,2]
[333826286,1722533453117,-500.0,0.00015342,2]
[333826287,1722533453127,-779.72,0.00015342,2]
[333826288,1722533453136,-500.0,0.00015342,2]
[333826289,1722533453145,-510.25147886,0.00015342,2]
[333826290,1722533453155,-638.92,0.00015342,2]
[333826291,1722533453166,-532.55,0.00015342,2]
[333826292,1722533453176,-567.83,0.00015342,2]
[333826293,1722533453188,-415.080629,0.00015342,2]
[333826294,1722533453198,-282.97963767,0.00015342,2]
[333826295,1722533453208,-415.080629,0.00015342,2]
[333826296,1722533453218,-500.0,0.00015342,2]
[333826297,1722533453228,-620.24,0.00015342,2]
[333826298,1722533453238,-500.0,0.00015342,2]
[333826299,1722533453248,-500.0,0.00015342,2]
[333826300,1722533453257,-152.679109,0.00015342,2]
[333826301,1722533453266,-668.5,0.00015342,2]
[333826302,1722533453275,-500.0,0.00015342,2]
[333826303,1722533453285,-500.0,0.00015342,2]
[333826304,1722533453294,-500.0,0.00015342,2]
[333826305,1722533453305,-737.04,0.00015342,2]
[333826306,1722533453314,-500.0,0.00015342,2]
[333826307,1722533453324,-514.69,0.00015342,2]
[333826308,1722533453334,-500.0,0.00015342,2]
[333826309,1722533453345,-151.0,0.00015342,2]
[333826310,1722533453354,-500.0,0.00015342,2]
[333826311,1722533453364,-1272.88,0.00015342,2]
[333826312,1722533453374,-500.0,0.00015342,2]
[333826313,1722533453384,-500.0,0.00015342,2]
[333826314,1722533453393,-1232.59,0.00015342,2]
[333826315,1722533453402,-259.265944,0.00015342,2]
[333826316,1722533453415,-500.0,0.00015342,2]
[333826317,1722533453424,-151.0,0.00015342,2]
[333826318,1722533453434,-1282.315822,0.00015342,2]
[333826319,1722533453443,-1282.315822,0.00015342,2]
[333826320,1722533453452,-151.0,0.00015606,2]
[333826321,1722533453461,-151.0,0.00015606,2]
[333826322,1722533453470,-151.0,0.00015606,2]
[333826323,1722533453479,-151.0,0.00015606,2]
[333826324,1722533453488,-500.0,0.00015616,2]
[333826325,1722533453497,-510.55702037,0.00015616,2]
[333826326,1722533453507,-500.0,0.00015616,2]
[333826327,1722533453516,-500.0,0.00015616,2]
[333826328,1722533453525,-500.0,0.00015616,2]
[333826329,1722533453534,-500.0,0.00015616,2]
[333826330,1722533453543,-500.0,0.00015616,2]
[333826331,1722533453552,-500.0,0.00015616,2]
[333826332,1722533453561,-500.0,0.00015616,2]
[333826333,1722533453570,-500.0,0.00015616,2]
[333826334,1722533453579,-500.0,0.00015616,2]
[333826335,1722533453588,-500.0,0.00015616,2]
[333826336,1722533453598,-500.0,0.00015616,2]
[333826337,1722533453608,-2557.1,0.00015616,2]
[333826338,1722533453617,-500.0,0.00015616,2]
[333826339,1722533453626,-500.0,0.00015616,2]
[333826340,1722533453635,-526.16503364,0.00015616,2]
[333826341,1722533453645,-375.02658681,0.00015616,2]
[333826342,1722533453654,-500.0,0.00015616,2]
[333826343,1722533453667,-500.0,0.00015616,2]
[333826344,1722533453677,-500.0,0.00015616,2]
[333826345,1722533453687,-500.0,0.00015616,2]
[333826346,1722533453698,-529.46,0.00015616,2]
[333826347,1722533453710,-500.0,0.00015616,2]
[333826348,1722533453719,-500.0,0.00015616,2]
[333826349,1722533453728,-500.0,0.00015616,2]
[333826350,1722533453738,-625.88,0.00015616,2]
[333826351,1722533453748,-528.88,0.00015616,2]
[333826352,1722533453819,-500.0,0.00015616,2]
[333826353,1722533453830,-500.0,0.00015616,2]
[333826354,1722533453839,-500.0,0.00015616,2]
[333826355,1722533453849,-500.0,0.00015616,2]
[333826356,1722533453862,-151.0,0.00015616,2]
[333826357,1722533453871,-500.0,0.00015616,2]
[333826358,1722533453880,-791.470537,0.00015616,2]
[333826359,1722533453892,-741.72,0.00015616,2]
[333826360,1722533453905,-835.55,0.00015616,2]
[333826361,1722533453917,-791.470537,0.00015616,2]
[333826362,1722533453926,-633.36921649,0.00015616,2]
[333826363,1722533453935,-500.0,0.00015616,2]
[333826364,1722533453946,-151.235269,0.00015616,2]
[333826365,1722533453955,-2362.81,0.00015616,2]
[333826366,1722533453965,-980.08,0.00015616,2]
[333826367,1722533453975,-500.0,0.00015616,2]
[333826368,1722533453984,-500.0,0.00015616,2]
[333826369,1722533453993,-500.0,0.00015616,2]
[333826370,1722533454003,-151.0,0.00015616,2]
[333826371,1722533454013,-920.762457,0.00015616,2]
[333826372,1722533454022,-2472.62,0.00015616,2]
[333826373,1722533454033,-151.0,0.00015616,2]
[333826374,1722533454042,-841.64,0.00015616,2]
[333826375,1722533454052,-920.762457,0.00015616,2]
[333826376,1722533454062,-3390.28,0.00015616,2]
[333826377,1722533454072,-788.87,0.00015616,2]
[333826378,1722533454082,-500.0,0.00015616,2]
[333826379,1722533454092,-500.0,0.00015616,2]
[333826380,1722533454103,-500.0,0.00015616,2]
[333826381,1722533454116,-500.0,0.00015616,2]
[333826382,1722533454127,-500.0,0.00015616,2]
[333826383,1722533454137,-2123.16,0.00015616,2]
[333826384,1722533454147,-500.0,0.00015616,2]
[333826385,1722533454157,-500.0,0.00015616,2]
[333826386,1722533454167,-500.0,0.00015616,2]
[333826387,1722533454178,-1344.79,0.00015616,2]
[333826388,1722533454189,-500.0,0.00015616,2]
[333826389,1722533454199,-779.72,0.00015616,2]
[333826390,1722533454209,-500.0,0.00015616,2]
[333826391,1722533454219,-638.92,0.00015616,2]
[333826392,1722533454229,-532.55,0.00015616,2]
[333826393,1722533454238,-567.83,0.00015616,2]
[333826394,1722533454249,-500.0,0.00015616,2]
[333826395,1722533454261,-620.24,0.00015616,2]
[333826396,1722533454270,-500.0,0.00015616,2]
[333826397,1722533454281,-500.0,0.00015616,2]
[333826398,1722533454290,-668.5,0.00015616,2]
[333826399,1722533454300,-500.0,0.00015616,2]
[333826400,1722533454309,-500.0,0.00015616,2]
[333826401,1722533454321,-500.0,0.00015616,2]
[333826402,1722533454332,-737.04,0.00015616,2]
[333826403,1722533454344,-500.0,0.00015616,2]
[333826404,1722533454355,-514.69,0.00015616,2]
[333826405,1722533454365,-388.25799798,0.00015616,2]
[333826406,1722533454375,-500.0,0.00015616,2]
[333826407,1722533454385,-1272.88,0.00015616,2]
[333826408,1722533454396,-500.0,0.00015616,2]
[333826409,1722533454406,-500.0,0.00015616,2]
[333826410,1722533454418,-1232.59,0.00015616,2]
[333826411,1722533454427,-500.0,0.00015616,2]
[333826412,1722533454439,-249.966464,0.00015697,2]
[333826413,1722533454449,-151.0,0.00015697,2]
[333826414,1722533454459,-151.0,0.00015697,2]
[333826415,1722533454468,-151.0,0.00015697,2]
[333826416,1722533454478,-151.0,0.00015697,2]
[333826417,1722533454488,-151.0,0.00015697,2]
[333826418,1722533454497,-151.0,0.00015697,2]
[333826419,1722533454506,-190.78035,0.00015697,2]
[333826420,1722533454516,-190.78035,0.00015697,2]
[333826421,1722533454527,-67192.12640089,0.00015707,2]
[333826422,1722533454538,-4132.62172969,0.00015707,2]
[333826423,1722533454548,-2231.17982025,0.00015707,2]
[333826424,1722533454560,-7110.30610333,0.00015707,2]
[333826425,1722533454569,-1991.22709473,0.00015707,2]
[333826426,1722533454579,-39837.67449508,0.00015707,2]
[333826427,1722533454589,-2653.82664697,0.00015707,2]
[333826428,1722533454598,-1500.0,0.00015707,2]
[333826429,1722533454609,-5246.22664739,0.00015707,3]
[333826430,1722533454619,-4104.98164301,0.00015707,2]
[333826431,1722533454631,-13436.2485175,0.00015707,2]
[333826432,1722533454641,-151.0,0.00015707,2]
[333826433,1722533454651,-151.0,0.00015707,2]
[333826434,1722533454662,-151.0,0.00015707,2]
[333826435,1722533454671,-151.0,0.00015707,2]
[333826436,1722533454680,-151.0,0.00015707,2]
[333826437,1722533454689,-151.0,0.00015707,2]
[333826438,1722533454701,-928.618108,0.00015707,2]
[333826439,1722533454713,-928.618108,0.00015707,2]
[333826440,1722533454725,-928.618108,0.00015707,2]
[333826441,1722533454735,-928.618108,0.00015707,2]
[333826442,1722533454747,-151.0,0.00015707,2]
[333826443,1722533454758,-151.8326,0.00015707,2]
[333826444,1722533454767,-151.0,0.00015707,2]
[333826445,1722533454777,-185.331522,0.00015707,2]
[333826446,1722533454788,-416.406976,0.00015707,2]
[333826447,1722533454799,-416.406976,0.00015707,2]
[333826448,1722533454808,-416.406976,0.00015707,2]
[333826449,1722533454817,-416.406976,0.00015707,2]
[333826450,1722533454827,-151.0,0.00015707,2]
[333826451,1722533454836,-151.0,0.00015707,2]
[333826452,1722533454845,-151.0,0.00015707,2]
[333826453,1722533454854,-190.78035,0.00015707,2]
[333826454,1722533454863,-190.78035,0.00015707,2]
[333826455,1722533454873,-34919.23184684,0.00015707,2]
[333826456,1722533454882,-367.494248,0.00015707,2]
[333826457,1722533454892,-170.97848,0.00015707,2]
[333826458,1722533454902,-367.494248,0.00015707,2]
[333826459,1722533454912,-151.0,0.00015707,2]
[333826460,1722533454921,-170.97848,0.00015707,2]
[333826461,1722533454930,-151.0,0.00015707,2]
[333826462,1722533454940,-151.0,0.00015707,2]
[333826463,1722533454949,-186.333189,0.00015707,2]
[333826464,1722533454958,-151.0,0.00015707,2]
[333826465,1722533454968,-6839.39441407,0.00015707,30]
[333826466,1722533454977,-791.470537,0.00015707,2]
[333826467,1722533454987,-791.470537,0.00015707,2]
[333826468,1722533454996,-151.0,0.00015707,2]
[333826469,1722533455063,-920.762457,0.00015707,2]
[333826470,1722533455072,-151.0,0.00015707,2]
[333826471,1722533455082,-151.0,0.00015707,2]
[333826472,1722533455092,-920.762457,0.00015707,2]
[333826473,1722533455102,-151.0,0.00015707,2]
[333826474,1722533455111,-728.914674,0.00015707,2]
[333826475,1722533455120,-728.914674,0.00015707,2]
[333826476,1722533455130,-728.914674,0.00015707,2]
[333826477,1722533455139,-728.914674,0.00015707,2]
[333826478,1722533455149,-415.080629,0.00015707,2]
[333826479,1722533455158,-415.080629,0.00015707,2]
[333826480,1722533455168,-794.340026,0.00015707,2]
[333826481,1722533455178,-794.340026,0.00015707,2]
[333826482,1722533455187,-794.340026,0.00015707,2]
[333826483,1722533455197,-794.340026,0.00015707,2]
[333826484,1722533455207,-884.141464,0.00015707,2]
[333826485,1722533455216,-877.06750497,0.00015707,2]
[333826496,1722533747655,739.147152,0.00027,120]
[333826613,1722534303242,1602.0,0.0001075,10]
[333826624,1722534440108,-166.666666,0.00012082,2]
[333826625,1722534440131,-653.7859614,0.00012275,2]
[333826626,1722534440154,-250.0,0.00012498,2]
[333826627,1722534440176,-250.0,0.00012532,2]
[333826628,1722534440199,-250.0,0.00012566,2]
[333826629,1722534440221,-250.0,0.000126,2]
[333826630,1722534440243,-250.0,0.00012635,2]
[333826631,1722534440265,-250.0,0.00012669,2]
[333826632,1722534440286,-250.0,0.00012703,2]
[333826633,1722534440308,-250.0,0.00012737,2]
[333826634,1722534440330,-250.0,0.00012772,2]
[333826635,1722534440352,-250.0,0.00012806,2]
[333826636,1722534440381,-227.28774398,0.0001284,2]
[333826637,1722534450122,-22.71225602,0.0001284,2]
[333826638,1722534450147,-247.57316222,0.00012875,2]
[333826639,1722534453149,-2.42683778,0.00012875,2]
[333826640,1722534453174,-250.0,0.00012909,2]
[333826641,1722534453197,-250.0,0.00012943,2]
[333826642,1722534453221,-250.0,0.00012977,2]
[333826643,1722534453244,-168.488169,0.00012986,2]
[333826644,1722534453267,-250.0,0.00013012,2]
[333826645,1722534453291,-250.0,0.00013046,2]
[333826646,1722534453314,-250.0,0.0001308,2]
[333826647,1722534453337,-250.0,0.00013114,2]
[333826648,1722534453362,-250.0,0.00013149,2]
[333826649,1722534453385,-300.0,0.00013597,2]
[333826650,1722534453407,-197.46654407,0.00013597,2]
[333826654,1722534469616,-102.53345593,0.00013597,2]
[333826655,1722534469638,-170.20512748,0.00013598,2]
[333826656,1722534469662,-1482.88346641,0.00013688,2]
[333826713,1722534632239,-14227.9560106,0.00013688,2]
[333826732,1722534637851,-9286.0370153,0.00013688,2]
[333826733,1722534637861,-500.0,0.00013697,2]
[333826735,1722534637870,-500.0,0.00013697,2]
[333826737,1722534637880,-500.0,0.00013697,2]
[333826739,1722534637889,-500.44866568,0.00013698,2]
[333826741,1722534637899,-500.0,0.00013698,2]
[333826743,1722534637908,-500.0,0.00013698,2]
[333826744,1722534637918,-500.0,0.00013698,2]
[333826746,1722534637927,-507.63589301,0.00013698,2]
[333826748,1722534637936,-504.23758031,0.00013698,2]
[333826750,1722534637945,-500.0,0.00013698,2]
[333826752,1722534637955,-500.0,0.00013698,2]
[333826754,1722534637964,-500.0,0.00013698,2]
[333826756,1722534637974,-331.83517555,0.00013698,2]
[333826757,1722534637984,-500.0,0.00013698,2]
[333826759,1722534637994,-500.0,0.00013698,2]
[333826761,1722534638003,-445.50083456,0.00013698,2]
[333826763,1722534638012,-500.0,0.00013698,2]
[333826765,1722534638022,-500.0,0.00013698,2]
[333826767,1722534638034,-500.0,0.00013698,2]
[333826769,1722534638043,-500.0,0.00013698,2]
[333826771,1722534638053,-500.0,0.00013698,2]
[333826773,1722534638063,-503.05056989,0.00013698,2]
[333826775,1722534638073,-500.0,0.00013698,2]
[333826777,1722534638084,-504.03913562,0.00013698,2]
[333826779,1722534638096,-500.0,0.00013698,2]
[333826781,1722534638106,-500.0,0.00013698,2]
[333826783,1722534638115,-500.0,0.00013698,2]
[333826785,1722534638124,-500.0,0.00013698,2]
[333826787,1722534638134,-500.0,0.00013698,2]
[333826789,1722534638144,-500.0,0.00013698,2]
[333826791,1722534638153,-503.55350925,0.00013698,2]
[333826793,1722534638162,-500.0,0.00013698,2]
[333826795,1722534638172,-500.0,0.00013698,2]
[333826797,1722534638183,-500.0,0.00013698,2]
[333826799,1722534638192,-500.0,0.00013698,2]
[333826801,1722534638201,-500.0,0.00013698,2]
[333826803,1722534638210,-500.0,0.00013698,2]
[333826805,1722534638220,-500.0,0.00013698,2]
[333826807,1722534638229,-500.0,0.00013698,2]
[333826809,1722534638238,-504.83737001,0.00013698,2]
[333826811,1722534638250,-500.0,0.00013698,2]
[333826813,1722534638259,-500.0,0.00013698,2]
[333826815,1722534638269,-500.0,0.00013698,2]
[333826817,1722534638279,-483.25628062,0.00013698,2]
[333826818,1722534638292,-500.0,0.00013698,2]
[333826820,1722534638301,-500.0,0.00013698,2]
[333826822,1722534638311,-500.0,0.00013698,2]
[333826824,1722534638320,-500.0,0.00013698,2]
[333826826,1722534638329,-500.0,0.00013698,2]
[333826828,1722534638338,-500.0,0.00013698,2]
[333826830,1722534638347,-500.0,0.00013698,2]
[333826832,1722534638357,-500.0,0.00013698,2]
[333826834,1722534638366,-500.0,0.00013698,2]
[333826836,1722534638376,-500.0,0.00013698,2]
[333826837,1722534638385,-500.0,0.00013698,2]
[333826839,1722534638395,-500.0,0.00013698,2]
[333826841,1722534638404,-500.0,0.00013698,2]
[333826843,1722534638413,-500.0,0.00013698,2]
[333826845,1722534638422,-500.0,0.00013698,2]
[333826847,1722534638432,-580.06,0.00013698,2]
[333826849,1722534638442,-500.0,0.00013698,2]
[333826851,1722534638451,-500.0,0.00013698,2]
[333826853,1722534638460,-500.0,0.00013698,2]
[333826855,1722534638469,-500.0,0.00013698,2]
[333826857,1722534638479,-500.0,0.00013698,2]
[333826859,1722534638489,-500.0,0.00013698,2]
[333826861,1722534638498,-500.0,0.00013698,2]
[333826863,1722534638508,-500.0,0.00013698,2]
[333826864,1722534638517,-309.01416214,0.00013698,2]
[333826866,1722534638526,-500.0,0.00013698,2]
[333826868,1722534638540,-500.0,0.00013698,2]
[333826870,1722534638550,-500.0,0.00013698,2]
[333826872,1722534638560,-500.0,0.00013698,2]
[333826874,1722534638569,-500.0,0.00013698,2]
[333826876,1722534638579,-500.0,0.00013698,2]
[333826878,1722534638589,-500.0,0.00013698,2]
[333826880,1722534638598,-500.0,0.00013698,2]
[333826882,1722534638608,-500.0,0.00013698,2]
[333826884,1722534638618,-500.0,0.00013698,2]
[333826886,1722534638628,-500.0,0.00013698,2]
[333826888,1722534638636,-500.0,0.00013698,2]
[333826890,1722534638647,-500.0,0.00013698,2]
[333826892,1722534638656,-500.0,0.00013698,2]
[333826894,1722534638665,-500.24551884,0.00013698,2]
[333826896,1722534638675,-500.0,0.00013698,2]
[333826898,1722534638684,-500.0,0.00013698,2]